[Event "CZE-ch 2020"]
[Site "Pilsen"]
[Date "2020.08.30"]
[Round "8.24"]
[White "Simek, Petr"]
[Black "Smolik, Jachym"]
[Result "1-0"]
[ECO "E68"]
[WhiteElo "2324"]
[BlackElo "2121"]
[Annotator "ChessBase"]
[PlyCount "101"]
[EventDate "2020.08.23"]
[EventType "swiss"]
[EventCountry "CZE"]
[SourceTitle "playchess.com"]
[Source "ChessBase"]
[SourceQuality "1"]
[TimeControl "40/5400+30:1800+30"]

1. c4 {[%emt 0:00:00]} Nf6 {[%emt 0:01:13]} 2. g3 {[%emt 0:00:49]} g6 {[%emt 0:00:03]} 3. Bg2 {[%emt 0:00:11]} Bg7 {[%emt 0:00:00]} 4. Nc3 {[%emt 0:00:15]} O-O {[%emt 0:00:04]} 5. d4 {[%emt 0:00:44]} d6 {[%emt 0:00:05]} 6. Nf3 {[%emt 0:00:06]} Nbd7 {[%emt 0:00:05]} 7. O-O {[%emt 0:00:10]} e5 {[%emt 0:00:02]} 8. e4 {[%emt 0:00:32]} exd4 {[%emt 0:00:06]} 9. Nxd4 {[%emt 0:00:06]} Re8 {[%emt 0:00:05]} 10. h3 {[%emt 0:05:29]} Nc5 {[%emt 0:00:09]} 11. Re1 {[%emt 0:00:35]} Bd7 {[%emt 0:00:08]} 12. Bf4 {[%emt 0:08:03]} h6 {[%emt 0:00:07]} 13. g4 {[%emt 0:03:00]} h5 {[%emt 0:15:41]} 14. f3 {[%emt 0:07:16]} hxg4 {[%emt 0:00:21]} 15. hxg4 {[%emt 0:00:52]} Nh7 {[%emt 0:01:30]} 16. Bg3 {[%emt 0:10:10]} a6 17. Qd2 {[%emt 0:03:40]} Be6 {[%emt 0:17:16]} 18. b3 {[%emt 0:27:31]} Be5 {[%emt 0:09:50]} 19. f4 {[%emt 0:04:54]} Bxg4 {[%emt 0:02:00]} 20. fxe5 {[%emt 0:01:48]} dxe5 {[%emt 0:00:01]} 21. Nd5 {[%emt 0:00:31]} c6 {[%emt 0:02:21]} 22. b4 {[%emt 0:11:36]} cxd5 {[%emt 0:03:16]} 23. bxc5 {[%emt 0:00:25]} dxc4 {[%emt 0:09:55]} 24. Nf3 {[%emt 0:00:24]} Bxf3 {[%emt 0:00:01]} 25. Qxd8 {[%emt 0:00:06]} Raxd8 {[%emt 0:00:02]} 26. Bxf3 {[%emt 0:00:08]} Rd3 {[%emt 0:01:34]} 27. Kf2 {[%emt 0:01:49]} Ng5 {[%emt 0:09:10]} 28. Bg2 {[%emt 0:00:06]} Ne6 {[%emt 0:00:56]} 29. c6 {[%emt 0:01:32]} Nc5 {[%emt 0:10:18]} 30. cxb7 {[%emt 0:00:08]} Nxb7 {[%emt 0:00:02]} 31. Rac1 {[%emt 0:04:53]} c3 {[%emt 0:02:46]} 32. Bf1 {[%emt 0:01:03]} Rd2+ {[%emt 0:00:17]} 33. Re2 {[%emt 0:00:22]} Nc5 {[%emt 0:00:29]} 34. Kf3 {[%emt 0:00:36]} Rd3+ {[%emt 0:04:25]} 35. Re3 {[%emt 0:00:07]} Rd2 {[%emt 0:02:29]} 36. Rexc3 {[%emt 0:00:23]} Ne6 {[%emt 0:00:04]} 37. Rc8 {[%emt 0:00:20]} Kf8 {[%emt 0:04:58]} 38. Bxe5 {[%emt 0:00:26]} Rxc8 {[%emt 0:02:49]} 39. Rxc8+ {[%emt 0:00:02]} Ke7 {[%emt 0:00:11]} 40. Bc4 {[%emt 0:00:57]} f6 {[%emt 0:02:16]} 41. Bc3 {[%emt 0:32:24]} Ng5+ {[%emt 0:31:31]} 42. Ke3 {[%emt 0:00:39]} Rh2 {[%emt 0:00:51]} 43. Bd5 {[%emt 0:02:46]} Rh3+ {[%emt 0:00:00]} 44. Kd2 {[%emt 0:00:00]} f5 {[%emt 0:00:00]} 45. e5 {[%emt 0:00:00]} Ne4+ {[%emt 0:00:00]} 46. Bxe4 {[%emt 0:00:00]} fxe4 {[%emt 0:00:00]} 47. a3 {[%emt 0:00:00]} Rd3+ {[%emt 0:00:00]} 48. Kc2 {[%emt 0:00:00]} Rd5 {[%emt 0:00:00]} 49. Rc4 {[%emt 0:00:00]} a5 {[%emt 0:00:00]} 50. Rxe4 {[%emt 0:00:00]} Ke6 {[%emt 0:00:00]} 51. Rf4 {[%emt 0:00:00]} 1-0

[Event "CZE-ch 2020"]
[Site "Pilsen"]
[Date "2020.08.30"]
[Round "8.25"]
[White "Toman, Ondrej"]
[Black "Bartos, Jan"]
[Result "1/2-1/2"]
[ECO "A40"]
[WhiteElo "2233"]
[BlackElo "2131"]
[Annotator "ChessBase"]
[PlyCount "71"]
[EventDate "2020.08.23"]
[EventType "swiss"]
[EventCountry "CZE"]
[SourceTitle "playchess.com"]
[Source "ChessBase"]
[SourceQuality "1"]
[TimeControl "40/5400+30:1800+30"]

1. d4 {[%emt 0:00:00]} e6 {[%emt 0:00:00]} 2. Bf4 {[%emt 0:00:00]} Nf6 {[%emt 0:00:00]} 3. e3 {[%emt 0:00:03]} d5 {[%emt 0:00:00]} 4. Nd2 {[%emt 0:00:20]} Bd6 {[%emt 0:00:00]} 5. Ngf3 {[%emt 0:00:10]} O-O {[%emt 0:00:20]} 6. Bg3 {[%emt 0:00:35]} b6 {[%emt 0:02:06]} 7. Ne5 {[%emt 0:01:23]} c5 {[%emt 0:00:53]} 8. c3 {[%emt 0:00:17]} Qc7 {[%emt 0:05:10]} 9. Bd3 {[%emt 0:04:20]} Ba6 {[%emt 0:01:47]} 10. Bxa6 {[%emt 0:04:46]} Nxa6 {[%emt 0:00:30]} 11. O-O {[%emt 0:01:52]} Nb8 {[%emt 0:00:37]} 12. f4 {[%emt 0:01:41]} Nc6 {[%emt 0:00:56]} 13. Qf3 {[%emt 0:03:14]} Ne7 {[%emt 0:04:07]} 14. Bh4 {[%emt 0:10:49]} Nd7 {[%emt 0:05:14]} 15. Qh3 {[%emt 0:10:18]} Nf5 {[%emt 0:03:24]} 16. Bf2 {[%emt 0:01:25]} Be7 {[%emt 0:04:54]} 17. g4 {[%emt 0:05:15]} Nd6 {[%emt 0:00:08]} 18. f5 {[%emt 0:09:16]} cxd4 {[%emt 0:15:20]} 19. exd4 {[%emt 0:03:19]} Nxe5 {[%emt 0:02:14]} 20. dxe5 {[%emt 0:00:09]} Nc4 {[%emt 0:00:35]} 21. Nxc4 {[%emt 0:03:52]} Qxc4 {[%emt 0:00:00]} 22. Bd4 {[%emt 0:02:06]} f6 {[%emt 0:06:47]} 23. b3 {[%emt 0:10:09]} Qc6 {[%emt 0:02:13]} 24. Rae1 {[%emt 0:05:54]} exf5 {[%emt 0:04:42]} 25. e6 {[%emt 0:02:30]} fxg4 {[%emt 0:02:36]} 26. Qxg4 {[%emt 0:00:02]} Bc5 {[%emt 0:04:57]} 27. Rf3 {[%emt 0:09:22]} Bxd4+ {[%emt 0:01:58]} 28. cxd4 {[%emt 0:00:47]} Rae8 {[%emt 0:00:15]} 29. e7 {[%emt 0:03:22]} Rf7 {[%emt 0:00:08]} 30. Rfe3 {[%emt 0:00:08]} f5 {[%emt 0:17:48]} 31. Qh4 {[%emt 0:04:43]} Qf6 {[%emt 0:07:34]} 32. Qxf6 {[%emt 0:01:05]} Rxf6 {[%emt 0:00:07]} 33. Rc3 {[%emt 0:01:20]} Kf7 {[%emt 0:00:33]} 34. Rc7 {[%emt 0:00:34]} a5 {[%emt 0:02:37]} 35. Re5 {[%emt 0:00:21]} g6 {[%emt 0:00:23]} 36. Rb7 {[%emt 0:00:45]} 1/2-1/2

[Event "CZE-ch 2020"]
[Site "Pilsen"]
[Date "2020.08.30"]
[Round "8.26"]
[White "Vojta, Jakub"]
[Black "Kawulok, Marek"]
[Result "1/2-1/2"]
[ECO "B27"]
[WhiteElo "2093"]
[BlackElo "2226"]
[Annotator "ChessBase"]
[PlyCount "61"]
[EventDate "2020.08.23"]
[EventType "swiss"]
[EventCountry "CZE"]
[SourceTitle "playchess.com"]
[Source "ChessBase"]
[SourceQuality "1"]
[TimeControl "40/5400+30:1800+30"]

1. e4 {[%emt 0:00:00]} c5 {[%emt 0:00:00]} 2. Nf3 {[%emt 0:00:00]} g6 {[%emt 0:00:00]} 3. c4 {[%emt 0:00:00]} Nc6 {[%emt 0:00:00]} 4. d4 {[%emt 0:00:00]} cxd4 {[%emt 0:00:00]} 5. Nxd4 {[%emt 0:00:00]} Qb6 {[%emt 0:00:06]} 6. Nb5 {[%emt 0:09:20]} Bg7 {[%emt 0:01:39]} 7. N1c3 {[%emt 0:01:48]} Nf6 {[%emt 0:06:48]} 8. Be3 {[%emt 0:02:15]} Qa5 {[%emt 0:04:03]} 9. f3 {[%emt 0:01:32]} O-O {[%emt 0:01:11]} 10. Be2 {[%emt 0:00:29]} d6 {[%emt 0:02:54]} 11. O-O {[%emt 0:00:23]} a6 {[%emt 0:00:08]} 12. Nd4 {[%emt 0:02:26]} Nxd4 {[%emt 0:01:13]} 13. Bxd4 {[%emt 0:00:07]} Be6 {[%emt 0:00:08]} 14. Rc1 {[%emt 0:05:59]} Rfc8 {[%emt 0:03:24]} 15. Qa4 {[%emt 0:06:20]} Qxa4 {[%emt 0:03:28]} 16. Nxa4 {[%emt 0:00:02]} Nd7 {[%emt 0:00:09]} 17. Be3 {[%emt 0:06:36]} Rcb8 {[%emt 0:22:23]} 18. Nc3 {[%emt 0:06:49]} b5 {[%emt 0:05:58]} 19. Nd5 {[%emt 0:02:02]} Bxd5 {[%emt 0:00:18]} 20. cxd5 {[%emt 0:00:08]} Rc8 {[%emt 0:00:09]} 21. Rxc8+ {[%emt 0:01:39]} Rxc8 {[%emt 0:00:02]} 22. Rc1 {[%emt 0:00:18]} Rxc1+ {[%emt 0:03:39]} 23. Bxc1 {[%emt 0:00:03]} Nb6 {[%emt 0:00:06]} 24. b3 {[%emt 0:00:38]} Bd4+ {[%emt 0:00:06]} 25. Kf1 {[%emt 0:00:20]} Kf8 {[%emt 0:00:05]} 26. Ke1 {[%emt 0:02:51]} Ke8 {[%emt 0:00:16]} 27. Kd2 {[%emt 0:00:25]} Kd7 {[%emt 0:04:35]} 28. Kd3 {[%emt 0:00:14]} Bg1 {[%emt 0:00:07]} 29. h3 {[%emt 0:00:52]} Kc7 {[%emt 0:00:08]} 30. Kc2 {[%emt 0:02:05]} Nd7 {[%emt 0:03:02]} 31. Bb2 {[%emt 0:02:39]} 1/2-1/2

[Event "CZE-ch 2020"]
[Site "Pilsen"]
[Date "2020.08.30"]
[Round "8.27"]
[White "Laurincova, Kristyna"]
[Black "Vybiral, Zdenek"]
[Result "0-1"]
[ECO "C03"]
[WhiteElo "2008"]
[BlackElo "2221"]
[Annotator "ChessBase"]
[PlyCount "50"]
[EventDate "2020.08.23"]
[EventType "swiss"]
[EventCountry "CZE"]
[SourceTitle "playchess.com"]
[Source "ChessBase"]
[SourceQuality "1"]
[TimeControl "40/5400+30:1800+30"]

1. e4 {[%emt 0:00:00]} e6 {[%emt 0:00:00]} 2. d4 {[%emt 0:00:00]} d5 {[%emt 0:00:00]} 3. Nd2 {[%emt 0:00:00]} a6 {[%emt 0:00:00]} 4. Ngf3 {[%emt 0:00:00]} c5 {[%emt 0:00:00]} 5. exd5 {[%emt 0:00:36]} exd5 {[%emt 0:00:09]} 6. Be2 {[%emt 0:02:56]} Nf6 {[%emt 0:00:12]} 7. O-O {[%emt 0:00:41]} Bd6 {[%emt 0:00:14]} 8. dxc5 {[%emt 0:00:09]} Bxc5 {[%emt 0:00:06]} 9. Nb3 {[%emt 0:00:21]} Bb6 {[%emt 0:00:06]} 10. Re1 {[%emt 0:00:53]} O-O {[%emt 0:00:21]} 11. Nfd4 {[%emt 0:04:43]} Nc6 {[%emt 0:01:02]} 12. Bf4 {[%emt 0:05:16]} Re8 {[%emt 0:01:07]} 13. c3 {[%emt 0:02:31]} Ne4 {[%emt 0:01:01]} 14. Bf3 {[%emt 0:02:16]} Qf6 {[%emt 0:02:40]} 15. Bg3 {[%emt 0:06:04]} Bd7 {[%emt 0:00:49]} 16. Nxc6 Bxc6 {[%emt 0:01:40]} 17. Nd4 {[%emt 0:16:59]} g6 {[%emt 0:18:29]} 18. Qd3 {[%emt 0:05:32]} h5 {[%emt 0:07:09]} 19. h4 {[%emt 0:09:13]} Nxg3 {[%emt 0:03:50]} 20. fxg3 {[%emt 0:00:37]} Qd6 {[%emt 0:04:26]} 21. Kh2 {[%emt 0:09:10]} Bc7 {[%emt 0:01:00]} 22. Ne2 {[%emt 0:00:41]} Bb5 {[%emt 0:02:42]} 23. c4 {[%emt 0:03:43]} Bxc4 {[%emt 0:01:32]} 24. Qa3 {[%emt 0:02:56]} Qxa3 {[%emt 0:01:23]} 25. bxa3 {[%emt 0:00:04]} Ba5 {[%emt 0:00:08]} 0-1

[Event "CZE-ch 2020"]
[Site "Pilsen"]
[Date "2020.08.30"]
[Round "8.28"]
[White "Nagy, Ladislav"]
[Black "Koubova, Anna Marie"]
[Result "1/2-1/2"]
[ECO "C02"]
[WhiteElo "2150"]
[BlackElo "2099"]
[Annotator "NA"]
[PlyCount "65"]
[EventDate "2020.08.23"]
[EventType "swiss"]
[EventCountry "CZE"]
[SourceTitle "playchess.com"]
[Source "ChessBase"]
[SourceQuality "1"]
[TimeControl "40/5400+30:1800+30"]

1. e4 {[%emt 0:00:00]} e6 {[%emt 0:01:28]} 2. d4 {[%emt 0:00:50]} d5 {[%emt 0:00:12]} 3. e5 {[%emt 0:00:32]} c5 {[%emt 0:00:08]} 4. c3 {[%emt 0:00:46]} Nc6 {[%emt 0:00:10]} 5. Nf3 {[%emt 0:00:58]} Bd7 {[%emt 0:01:19]} 6. Be2 {[%emt 0:02:34]} cxd4 {[%emt 0:01:12]} 7. cxd4 {[%emt 0:00:55]} Nh6 {[%emt 0:00:44] C02: French: Advance Variation.} 8. Bxh6 {[%emt 0:10:02]} gxh6 {[%emt 0:00:06]} 9. Nc3 {[%emt 0:04:01]} Bg7 {[%emt 0:01:15]} 10. Qd2 {[%emt 0:06:53] [#]} Rc8 $146 {[%emt 0:08:53]} ({Predecessor:} 10... f6 11. O-O O-O 12. Bb5 fxe5 13. Bxc6 Bxc6 14. Nxe5 Bxe5 15. dxe5 d4 16. Ne2 Qd5 {½-½ (55) Tan,C (2300)-Vasiljevic,D (2325) Belgrade 1988}) 11. O-O {[%emt 0:05:53]} O-O {[%emt 0:02:56]} 12. Rad1 {[%emt 0:13:34]} f6 {[%emt 0:03:59]} 13. exf6 {[%emt 0:02:13]} Qxf6 {[%emt 0:01:55]} 14. Bb5 {[%emt 0:05:00]} Be8 {[%emt 0:11:38]} 15. Bxc6 {[%emt 0:09:58]} bxc6 {[%emt 0:02:08]} 16. Ne2 {[%emt 0:13:50]} c5 {[%emt 0:09:56]} 17. Rc1 {[%emt 0:01:26]} Bb5 {[%emt 0:14:13]} 18. Rxc5 {[%emt 0:06:21]} Rxc5 {[%emt 0:19:14]} 19. dxc5 {[%emt 0:00:02]} Qxb2 {[%emt 0:00:11]} 20. Qxb2 {[%emt 0:02:24]} Bxb2 {[%emt 0:00:20]} 21. Rb1 {[%emt 0:01:01]} Bxe2 $11 {[%emt 0:00:11]} 22. Rxb2 {[%emt 0:00:05]} Bxf3 {[%emt 0:00:31]} 23. gxf3 {[%emt 0:00:06]} Rc8 {[%emt 0:00:42]} 24. Rb7 {[%emt 0:03:22]} Rxc5 {[%emt 0:05:51]} 25. Rxa7 {[%emt 0:00:02]} Rc1+ {[%emt 0:01:01]} 26. Kg2 {[%emt 0:00:27]} e5 {[%emt 0:01:22]} 27. a4 {[%emt 0:02:45]} d4 {[%emt 0:00:32]} 28. a5 {[%emt 0:04:00]} d3 {[%emt 0:00:35]} 29. Rd7 {[%emt 0:00:25]} Ra1 {[%emt 0:00:50]} 30. Rxd3 {[%emt 0:00:33]} Rxa5 {[%emt 0:00:07]} 31. Rd7 {[%emt 0:00:33]} Ra6 {[%emt 0:00:55]} 32. Re7 {[%emt 0:00:35]} Rg6+ {[%emt 0:00:21]} 33. Kf1 {[%emt 0:00:57]} 1/2-1/2

[Event "CZE-ch 2020"]
[Site "Pilsen"]
[Date "2020.08.30"]
[Round "8.29"]
[White "Kures, Michael"]
[Black "Nemec, Jachym"]
[Result "0-1"]
[ECO "B94"]
[WhiteElo "2019"]
[BlackElo "2150"]
[Annotator "NA"]
[PlyCount "50"]
[EventDate "2020.08.23"]
[EventType "swiss"]
[EventCountry "CZE"]
[SourceTitle "playchess.com"]
[Source "ChessBase"]
[SourceQuality "1"]
[TimeControl "40/5400+30:1800+30"]

1. e4 {[%emt 0:00:00]} c5 {[%emt 0:00:00]} 2. Nf3 {[%emt 0:00:00]} d6 {[%emt 0:00:00]} 3. d4 {[%emt 0:00:10]} cxd4 {[%emt 0:00:12]} 4. Nxd4 {[%emt 0:00:06]} Nf6 {[%emt 0:00:06]} 5. Nc3 {[%emt 0:00:07]} a6 {[%emt 0:00:04]} 6. Bg5 {[%emt 0:01:10]} Nbd7 {[%emt 0:00:07]} 7. Qd2 {[%emt 0:07:34]} e6 {[%emt 0:08:36]} 8. O-O-O {[%emt 0:01:51]} Qc7 {[%emt 0:01:30]} 9. Kb1 {[%emt 0:02:34]} Be7 {[%emt 0:00:30]} 10. f4 {[%emt 0:04:54]} b5 $11 {[%emt 0:14:54]} 11. Bxf6 {[%emt 0:08:02]} Nxf6 {[%emt 0:02:46]} 12. Bd3 {[%emt 0:05:48]} b4 {[%emt 0:09:33]} 13. Nce2 {[%emt 0:00:22]} Bb7 {[%emt 0:00:11]} 14. Qxb4 {[%emt 0:02:12]} O-O {[%emt 0:03:51]} 15. Qc3 {[%emt 0:01:04]} Qb6 {[%emt 0:01:21]} 16. Ng3 {[%emt 0:19:42]} Rfc8 {[%emt 0:06:02]} 17. Qb3 {[%emt 0:07:00]} Qxd4 {[%emt 0:02:28]} 18. e5 {[%emt 0:04:58]} Bd5 {[%emt 0:08:39]} 19. Qa3 {[%emt 0:00:09]} Qb6 {[%emt 0:01:07]} 20. exf6 {[%emt 0:00:33]} Bxf6 {[%emt 0:00:09]} 21. Ka1 {[%emt 0:06:30]} Rab8 {[%emt 0:01:10]} 22. Rb1 {[%emt 0:00:42]} Rc5 {[%emt 0:00:19]} 23. c4 {[%emt 0:09:00]} Ra5 {[%emt 0:00:15]} 24. Qxa5 {[%emt 0:00:36]} Qxa5 {[%emt 0:00:04]} 25. cxd5 {[%emt 0:00:09]} Qa3 {[%emt 0:00:19]} 0-1

[Event "CZE-ch 2020"]
[Site "Pilsen"]
[Date "2020.08.30"]
[Round "8.30"]
[White "Stinka, Jakub"]
[Black "Pokrupa, Marek"]
[Result "1-0"]
[ECO "D85"]
[WhiteElo "2299"]
[BlackElo "2164"]
[Annotator "ChessBase"]
[PlyCount "87"]
[EventDate "2020.08.23"]
[EventType "swiss"]
[EventCountry "CZE"]
[SourceTitle "playchess.com"]
[Source "ChessBase"]
[SourceQuality "1"]
[TimeControl "40/5400+30:1800+30"]

1. d4 {[%emt 0:00:00]} Nf6 {[%emt 0:00:00]} 2. c4 {[%emt 0:00:00]} g6 {[%emt 0:00:00]} 3. Nc3 {[%emt 0:00:02]} d5 {[%emt 0:00:43]} 4. cxd5 {[%emt 0:00:21]} Nxd5 {[%emt 0:00:03]} 5. g3 {[%emt 0:00:38]} Bg7 {[%emt 0:00:31]} 6. Bg2 {[%emt 0:00:13]} Nb6 {[%emt 0:03:57]} 7. Nf3 {[%emt 0:00:20]} Nc6 {[%emt 0:00:42]} 8. e3 {[%emt 0:01:03]} e5 {[%emt 0:02:27]} 9. d5 {[%emt 0:02:02]} Ne7 {[%emt 0:00:52]} 10. e4 {[%emt 0:01:40]} Bg4 {[%emt 0:00:26]} 11. h3 {[%emt 0:05:02]} Bxf3 {[%emt 0:00:22]} 12. Qxf3 {[%emt 0:01:24]} c6 {[%emt 0:01:55]} 13. O-O {[%emt 0:02:42]} cxd5 {[%emt 0:01:28]} 14. exd5 {[%emt 0:02:42]} Nf5 {[%emt 0:02:39]} 15. b3 {[%emt 0:06:08]} Nd6 {[%emt 0:11:06]} 16. Ba3 {[%emt 0:08:56]} Nbc8 {[%emt 0:03:24]} 17. Ne4 {[%emt 0:04:04]} O-O {[%emt 0:01:44]} 18. Rac1 {[%emt 0:02:04]} Re8 {[%emt 0:07:34]} 19. Rfd1 {[%emt 0:07:27]} Nxe4 {[%emt 0:04:25]} 20. Qxe4 {[%emt 0:00:35]} Nd6 {[%emt 0:00:33]} 21. Qe3 {[%emt 0:01:17]} Bf8 {[%emt 0:05:58]} 22. Bb2 {[%emt 0:04:57]} Bg7 {[%emt 0:09:57]} 23. Rc2 {[%emt 0:07:02]} Nf5 {[%emt 0:07:32]} 24. Qd2 {[%emt 0:03:32]} Nd6 {[%emt 0:01:31]} 25. Rdc1 {[%emt 0:04:34]} Qb6 {[%emt 0:13:22]} 26. Kh2 {[%emt 0:03:26]} Rad8 {[%emt 0:03:38]} 27. h4 {[%emt 0:06:31]} h5 {[%emt 0:00:57]} 28. Ba3 {[%emt 0:03:18]} Bf8 {[%emt 0:00:17]} 29. Bc5 {[%emt 0:00:25]} Qb5 {[%emt 0:07:12]} 30. Bxa7 {[%emt 0:02:34]} Nf5 {[%emt 0:00:18]} 31. Rd1 {[%emt 0:08:36]} Bb4 {[%emt 0:02:19]} 32. Qe2 {[%emt 0:02:36]} Qa5 {[%emt 0:00:21]} 33. Be3 {[%emt 0:00:50]} Nd4 {[%emt 0:01:12]} 34. Bxd4 {[%emt 0:01:27]} exd4 35. Qd3 {[%emt 0:01:04]} Bc3 {[%emt 0:00:22]} 36. Re2 {[%emt 0:01:57]} Kf8 {[%emt 0:04:11]} 37. Rc1 {[%emt 0:04:05]} Rxe2 {[%emt 0:00:11]} 38. Qxe2 {[%emt 0:00:01]} Re8 {[%emt 0:00:06]} 39. Qf3 {[%emt 0:01:10]} Qxa2 {[%emt 0:02:46]} 40. Qf6 {[%emt 0:01:02]} Qa5 {[%emt 0:02:03]} 41. Qh8+ {[%emt 0:12:06]} Ke7 {[%emt 0:00:00]} 42. d6+ {[%emt 0:00:08]} Kd8 {[%emt 0:02:12]} 43. Qf6+ {[%emt 0:00:28]} Kc8 {[%emt 0:01:10]} 44. Qxd4 {[%emt 0:00:30]} 1-0

[Event "CZE-ch 2020"]
[Site "Pilsen"]
[Date "2020.08.30"]
[Round "8.32"]
[White "Ludvik, Tomas"]
[Black "Brozka, Karel"]
[Result "1-0"]
[ECO "E90"]
[WhiteElo "2202"]
[BlackElo "1991"]
[Annotator "ChessBase"]
[PlyCount "65"]
[EventDate "2020.08.23"]
[EventType "swiss"]
[EventCountry "CZE"]
[SourceTitle "playchess.com"]
[Source "ChessBase"]
[SourceQuality "1"]
[TimeControl "40/5400+30:1800+30"]

1. d4 {[%emt 0:00:00]} Nf6 {[%emt 0:00:00]} 2. c4 {[%emt 0:00:00]} g6 {[%emt 0:00:00]} 3. Nc3 {[%emt 0:00:00]} Bg7 {[%emt 0:00:00]} 4. e4 {[%emt 0:00:00]} d6 {[%emt 0:00:04]} 5. Nf3 {[%emt 0:00:00]} Nbd7 {[%emt 0:00:29]} 6. Be2 {[%emt 0:00:01]} O-O {[%emt 0:00:06]} 7. O-O {[%emt 0:00:08]} e5 {[%emt 0:00:12]} 8. Be3 {[%emt 0:00:31]} c6 {[%emt 0:00:32]} 9. d5 {[%emt 0:05:27]} Qe7 {[%emt 0:06:57]} 10. Qc2 {[%emt 0:02:42]} Ne8 {[%emt 0:01:43]} 11. Nd2 {[%emt 0:02:17]} f5 {[%emt 0:08:43]} 12. exf5 {[%emt 0:06:45]} gxf5 {[%emt 0:01:05]} 13. f3 {[%emt 0:01:22]} Ndf6 {[%emt 0:05:43]} 14. Rad1 {[%emt 0:09:38]} Qf7 {[%emt 0:09:31]} 15. dxc6 {[%emt 0:10:45]} bxc6 {[%emt 0:01:19]} 16. b4 {[%emt 0:02:39]} Nc7 {[%emt 0:18:55]} 17. Qa4 {[%emt 0:07:11]} d5 {[%emt 0:09:14]} 18. Bc5 {[%emt 0:03:10]} Bb7 {[%emt 0:00:40]} 19. Bxf8 {[%emt 0:03:42]} Bxf8 {[%emt 0:01:53]} 20. cxd5 {[%emt 0:04:34]} cxd5 {[%emt 0:00:50]} 21. f4 {[%emt 0:00:55]} e4 {[%emt 0:05:07]} 22. Nb3 {[%emt 0:00:51]} Ne6 {[%emt 0:01:15]} 23. Nb5 {[%emt 0:07:14]} Bc6 {[%emt 0:03:40]} 24. Na5 {[%emt 0:04:59]} Bxb5 {[%emt 0:01:32]} 25. Qxb5 {[%emt 0:02:17]} Bd6 {[%emt 0:01:32]} 26. Qc6 {[%emt 0:04:01]} Qf8 {[%emt 0:05:41]} 27. Rxd5 {[%emt 0:05:09]} Rd8 {[%emt 0:05:48]} 28. Nb7 {[%emt 0:04:29]} Nxf4 {[%emt 0:02:33]} 29. Rxf4 {[%emt 0:00:33]} Nxd5 {[%emt 0:00:18]} 30. Qxd5+ {[%emt 0:00:15]} Kh8 {[%emt 0:00:31]} 31. Qd4+ {[%emt 0:01:42]} Qg7 {[%emt 0:00:43]} 32. Qxg7+ {[%emt 0:00:07]} Kxg7 {[%emt 0:00:02]} 33. Nxd8 {[%emt 0:00:09]} 1-0

[Event "CZE-ch 2020"]
[Site "Pilsen"]
[Date "2020.08.30"]
[Round "8.33"]
[White "Simet, Martin"]
[Black "Janous, Marek"]
[Result "1-0"]
[ECO "A28"]
[WhiteElo "2194"]
[BlackElo "1968"]
[Annotator "NA"]
[PlyCount "61"]
[EventDate "2020.08.23"]
[EventType "swiss"]
[EventCountry "CZE"]
[SourceTitle "playchess.com"]
[Source "ChessBase"]
[SourceQuality "1"]
[TimeControl "40/5400+30:1800+30"]

1. c4 {[%emt 0:00:00]} e5 {[%emt 0:00:00]} 2. Nc3 {[%emt 0:00:50]} Nf6 {[%emt 0:00:00]} 3. Nf3 {[%emt 0:00:23]} Nc6 {[%emt 0:00:47]} 4. e4 {[%emt 0:00:06]} g6 {[%emt 0:02:38]} 5. d3 {[%emt 0:01:10]} h6 {[%emt 0:01:41]} 6. Be2 {[%emt 0:02:34]} Bg7 {[%emt 0:00:13]} 7. h3 {[%emt 0:01:19]} d6 {[%emt 0:00:54]} 8. Be3 {[%emt 0:03:05]} Ne7 {[%emt 0:03:05]} 9. d4 {[%emt 0:02:01]} Nd7 {[%emt 0:09:52]} 10. g4 {[%emt 0:07:01]} c6 {[%emt 0:02:24]} 11. Qd2 {[%emt 0:03:09]} Qc7 {[%emt 0:06:50]} 12. Rd1 {[%emt 0:01:46]} Nf8 {[%emt 0:06:19]} 13. dxe5 {[%emt 0:03:36]} dxe5 {[%emt 0:00:09]} 14. Bc5 $16 {[%emt 0:00:06]} Qd7 {[%emt 0:11:55]} 15. Qc2 {[%emt 0:06:47]} Qc7 {[%emt 0:01:34]} 16. Bd6 {[%emt 0:00:05]} Qb6 {[%emt 0:04:33]} 17. Na4 {[%emt 0:11:16]} Qd8 {[%emt 0:00:06]} 18. O-O {[%emt 0:01:51]} Nd7 {[%emt 0:00:47]} 19. Nxe5 {[%emt 0:03:10]} O-O {[%emt 0:01:07]} 20. Nxd7 {[%emt 0:01:35]} Qxd7 {[%emt 0:02:47]} 21. Nc5 {[%emt 0:03:41]} Qd8 {[%emt 0:01:40]} 22. e5 {[%emt 0:06:48]} h5 {[%emt 0:04:36]} 23. Ne4 {[%emt 0:00:30]} Re8 {[%emt 0:06:08]} 24. Nf6+ {[%emt 0:01:12]} Bxf6 {[%emt 0:00:40]} 25. exf6 {[%emt 0:00:02]} Nf5 {[%emt 0:00:26]} 26. Be7 {[%emt 0:00:41]} Qc7 {[%emt 0:00:25]} 27. gxf5 {[%emt 0:00:11]} Bxf5 {[%emt 0:00:03]} 28. Qd2 {[%emt 0:00:49]} Kh7 {[%emt 0:00:57]} 29. Qg5 {[%emt 0:01:51]} Bxh3 {[%emt 0:02:51]} 30. Bd6 {[%emt 0:00:59]} Qc8 {[%emt 0:00:39]} 31. Bf4 {[%emt 0:00:06]} 1-0

[Event "CZE-ch 2020"]
[Site "Pilsen"]
[Date "2020.08.30"]
[Round "8.36"]
[White "Jezek, Jan"]
[Black "Placer, Sebastian"]
[Result "0-1"]
[ECO "C00"]
[WhiteElo "2162"]
[BlackElo "2097"]
[Annotator "NA"]
[PlyCount "60"]
[EventDate "2020.08.23"]
[EventType "swiss"]
[EventCountry "CZE"]
[SourceTitle "playchess.com"]
[Source "ChessBase"]
[SourceQuality "1"]
[TimeControl "40/5400+30:1800+30"]

1. e4 e6 2. d3 {[%emt 0:00:00]} d5 {[%emt 0:00:00]} 3. Nd2 {[%emt 0:00:03]} Nf6 {[%emt 0:00:04]} 4. Ngf3 {[%emt 0:00:32]} c5 {[%emt 0:00:23]} 5. Be2 {[%emt 0:00:39]} Nc6 {[%emt 0:00:07]} 6. c3 {[%emt 0:01:17]} Be7 {[%emt 0:00:15]} 7. O-O {[%emt 0:00:23]} O-O {[%emt 0:00:11]} 8. Re1 {[%emt 0:00:46]} Qc7 {[%emt 0:00:35]} 9. Bf1 {[%emt 0:02:55]} Rd8 {[%emt 0:01:07]} 10. Qc2 {[%emt 0:03:36]} b6 {[%emt 0:00:29]} 11. a3 {[%emt 0:00:55]} Ba6 {[%emt 0:03:39]} 12. b3 {[%emt 0:06:40]} dxe4 {[%emt 0:01:30]} 13. dxe4 {[%emt 0:02:21]} Bxf1 {[%emt 0:00:06]} 14. Nxf1 {[%emt 0:00:57]} Ng4 {[%emt 0:02:52]} 15. Bg5 {[%emt 0:09:14]} Bxg5 {[%emt 0:06:20]} 16. Nxg5 {[%emt 0:00:10]} Nge5 {[%emt 0:01:15]} 17. Ne3 {[%emt 0:11:06]} h6 {[%emt 0:01:23]} 18. Nh3 $17 {[%emt 0:00:24]} c4 {[%emt 0:03:56]} 19. b4 {[%emt 0:09:20]} Nd3 {[%emt 0:03:10]} 20. Red1 {[%emt 0:00:40]} b5 {[%emt 0:00:54]} 21. Qe2 {[%emt 0:04:22]} Qe5 {[%emt 0:04:50]} 22. a4 {[%emt 0:12:42]} a6 {[%emt 0:00:38]} 23. axb5 {[%emt 0:00:18]} axb5 {[%emt 0:00:06]} 24. Rxa8 {[%emt 0:00:10]} Rxa8 {[%emt 0:00:01]} 25. Rxd3 {[%emt 0:00:19]} cxd3 {[%emt 0:00:14]} 26. Qxd3 {[%emt 0:00:06]} Ra1+ {[%emt 0:00:25]} 27. Nf1 {[%emt 0:00:06]} Rc1 {[%emt 0:00:41]} 28. Qd7 {[%emt 0:02:36]} Qxe4 {[%emt 0:04:03]} 29. Qe8+ Kh7 {[%emt 0:00:00]} 30. Qxf7 {[%emt 0:04:40]} Qe2 0-1